[Event "Titled Tuesday Blitz November 14 Late 2023"]
[White "Lymar, Vladislav"]
[Black "Khismatullin, Denis"]
[WhiteFideId "14162180"]
[BlackFideId "4142578"]
[WhiteElo "2582"]
[BlackElo "2952"]
[Result "0-1"]
[Round "2"]
[TimeControl "180+1"]
[Date "2023.11.14"]
[WhiteClock "0:00:40"]
[BlackClock "0:00:36"]
[Board "16"]

1. d4 {[%clk 0:03:00]}  Nf6 {[%clk 0:02:57]} 2. c4 {[%clk 0:03:01]}  e6 {[%clk 0:02:57]} 3. Bf4 {[%clk 0:03:02]}  d5 {[%clk 0:02:55]} 4. cxd5 {[%clk 0:03:03]}  exd5 {[%clk 0:02:53]} 5. e3 {[%clk 0:03:03]}  Bd6 {[%clk 0:02:49]} 6. Bxd6 {[%clk 0:03:03]}  Qxd6 {[%clk 0:02:49]} 7. Bd3 {[%clk 0:03:04]}  O-O {[%clk 0:02:49]} 8. Nc3 {[%clk 0:03:03]}  Re8 {[%clk 0:02:46]} 9. Qc2 {[%clk 0:03:03]}  Nc6 {[%clk 0:02:39]} 10. a3 {[%clk 0:03:01]}  Nxd4 {[%clk 0:02:37]} 11. Qa4 {[%clk 0:02:57]}  c5 {[%clk 0:02:28]} 12. Nge2 {[%clk 0:02:50]}  Bd7 {[%clk 0:02:25]} 13. Qd1 {[%clk 0:02:48]}  Nxe2 {[%clk 0:02:23]} 14. Nxe2 {[%clk 0:02:47]}  Ng4 {[%clk 0:02:15]} 15. h3 {[%clk 0:02:42]}  Ne5 {[%clk 0:02:15]} 16. O-O {[%clk 0:02:39]}  Rad8 {[%clk 0:02:09]} 17. Bc2 {[%clk 0:02:33]}  Bb5 {[%clk 0:02:02]} 18. Re1 {[%clk 0:02:31]}  d4 {[%clk 0:01:58]} 19. exd4 {[%clk 0:02:31]}  cxd4 {[%clk 0:01:59]} 20. Bb3 {[%clk 0:02:27]}  g6 {[%clk 0:01:51]} 21. Qd2 {[%clk 0:02:24]}  d3 {[%clk 0:01:44]} 22. Nc3 {[%clk 0:02:23]}  Bc6 {[%clk 0:01:40]} 23. Rad1 {[%clk 0:02:21]}  Qd4 {[%clk 0:01:37]} 24. Re3 {[%clk 0:02:10]}  Kg7 {[%clk 0:01:30]} 25. Rde1 {[%clk 0:02:05]}  Qf4 {[%clk 0:01:28]} 26. Rd1 {[%clk 0:01:50]}  h5 {[%clk 0:01:08]} 27. Rg3 {[%clk 0:01:49]}  Qxd2 {[%clk 0:01:04]} 28. Rxd2 {[%clk 0:01:50]}  h4 {[%clk 0:01:04]} 29. Re3 {[%clk 0:01:49]}  g5 {[%clk 0:01:04]} 30. Ne4 {[%clk 0:01:34]}  Bxe4 {[%clk 0:01:02]} 31. Rxe4 {[%clk 0:01:35]}  f5 {[%clk 0:01:02]} 32. Rb4 {[%clk 0:01:33]}  Re7 {[%clk 0:00:53]} 33. Kh2 {[%clk 0:01:25]}  f4 {[%clk 0:00:52]} 34. a4 {[%clk 0:01:21]}  b6 {[%clk 0:00:50]} 35. a5 {[%clk 0:01:19]}  Nc6 {[%clk 0:00:49]} 36. Rb5 {[%clk 0:01:18]}  Re5 {[%clk 0:00:45]} 37. Rxe5 {[%clk 0:01:13]}  Nxe5 {[%clk 0:00:46]} 38. axb6 {[%clk 0:01:13]}  axb6 {[%clk 0:00:46]} 39. Kg1 {[%clk 0:01:00]}  Kf6 {[%clk 0:00:46]} 40. Bd1 {[%clk 0:00:55]}  f3 {[%clk 0:00:42]} 41. Bxf3 {[%clk 0:00:51]}  Nxf3+ {[%clk 0:00:42]} 42. gxf3 {[%clk 0:00:52]}  Ke5 {[%clk 0:00:42]} 43. Kf1 {[%clk 0:00:51]}  Kf4 {[%clk 0:00:42]} 44. Kg2 {[%clk 0:00:50]}  b5 {[%clk 0:00:40]} 45. b4 {[%clk 0:00:48]}  Rd4 {[%clk 0:00:40]} 46. Rd1 {[%clk 0:00:46]}  d2 {[%clk 0:00:39]} 47. Kg1 {[%clk 0:00:46]}  Kxf3 {[%clk 0:00:38]} 48. Kf1 {[%clk 0:00:40]}  Rc4 {[%clk 0:00:36]} 0-1


[Site "https://www.chess.com"]

[Event "Titled Tuesday Blitz November 14 Late 2023"]
[White "Lima, Kleyton Alcantara"]
[Black "Bortnyk, Mykola"]
[WhiteFideId "22718397"]
[BlackFideId "14120836"]
[WhiteElo "2581"]
[BlackElo "2942"]
[Result "0-1"]
[Round "2"]
[TimeControl "180+1"]
[Date "2023.11.14"]
[WhiteClock "0:00:18"]
[BlackClock "0:00:39"]
[Board "18"]

1. e4 {[%clk 0:03:00]}  Nf6 {[%clk 0:02:59]} 2. e5 {[%clk 0:03:00]}  Nd5 {[%clk 0:03:00]} 3. d4 {[%clk 0:03:01]}  d6 {[%clk 0:03:00]} 4. Nf3 {[%clk 0:03:01]}  dxe5 {[%clk 0:03:01]} 5. Nxe5 {[%clk 0:03:00]}  c6 {[%clk 0:03:01]} 6. Nf3 {[%clk 0:02:52]}  Bg4 {[%clk 0:02:58]} 7. Be2 {[%clk 0:02:49]}  e6 {[%clk 0:02:58]} 8. c4 {[%clk 0:02:44]}  Nf6 {[%clk 0:02:56]} 9. O-O {[%clk 0:02:42]}  Bd6 {[%clk 0:02:55]} 10. Be3 {[%clk 0:02:42]}  Nbd7 {[%clk 0:02:54]} 11. Nc3 {[%clk 0:02:41]}  O-O {[%clk 0:02:53]} 12. Qd2 {[%clk 0:02:40]}  Qc7 {[%clk 0:02:49]} 13. h3 {[%clk 0:02:40]}  Bh5 {[%clk 0:02:49]} 14. Rad1 {[%clk 0:02:39]}  Rad8 {[%clk 0:02:47]} 15. Rfe1 {[%clk 0:02:37]}  Rfe8 {[%clk 0:02:45]} 16. a3 {[%clk 0:02:32]}  Qb8 {[%clk 0:02:39]} 17. b4 {[%clk 0:02:27]}  e5 {[%clk 0:02:34]} 18. dxe5 {[%clk 0:02:22]}  Nxe5 {[%clk 0:02:29]} 19. Nxe5 {[%clk 0:02:22]}  Bxe5 {[%clk 0:02:29]} 20. Qc1 {[%clk 0:02:07]}  Bg6 {[%clk 0:02:09]} 21. Bf3 {[%clk 0:01:59]}  h6 {[%clk 0:01:59]} 22. b5 {[%clk 0:01:43]}  Qc7 {[%clk 0:01:38]} 23. bxc6 {[%clk 0:01:31]}  bxc6 {[%clk 0:01:39]} 24. Na4 {[%clk 0:01:27]}  Be4 {[%clk 0:01:29]} 25. Bxe4 {[%clk 0:01:23]}  Nxe4 {[%clk 0:01:29]} 26. Nc5 {[%clk 0:00:59]}  Rxd1 {[%clk 0:01:12]} 27. Rxd1 {[%clk 0:00:57]}  Nc3 {[%clk 0:01:12]} 28. Rd2 {[%clk 0:00:47]}  Qa5 {[%clk 0:01:05]} 29. Nb3 {[%clk 0:00:35]}  Qa4 {[%clk 0:00:58]} 30. Nc5 {[%clk 0:00:30]}  Qxc4 {[%clk 0:00:56]} 31. Kh1 {[%clk 0:00:24]}  Rb8 {[%clk 0:00:40]} 32. Rb2 {[%clk 0:00:18]}  Rxb2 {[%clk 0:00:39]} 33. Qxb2 {[%clk 0:00:18]}  Qf1# {[%clk 0:00:39]} 0-1


[Site "https://www.chess.com"]

[Event "Titled Tuesday Blitz November 14 Late 2023"]
[White "Sanchez Alvares, Kelvin Antonio"]
[Black "Kamsky, Gata"]
[WhiteFideId "3906680"]
[BlackFideId "2000024"]
[WhiteElo "2579"]
[BlackElo "2927"]
[Result "0-1"]
[Round "2"]
[TimeControl "180+1"]
[Date "2023.11.14"]
[WhiteClock "0:00:29"]
[BlackClock "0:01:10"]
[Board "20"]

1. e4 {[%clk 0:02:59]}  c5 {[%clk 0:02:59]} 2. Nf3 {[%clk 0:02:52]}  e6 {[%clk 0:02:59]} 3. d4 {[%clk 0:02:51]}  cxd4 {[%clk 0:02:58]} 4. Nxd4 {[%clk 0:02:52]}  a6 {[%clk 0:02:57]} 5. c4 {[%clk 0:02:48]}  Nc6 {[%clk 0:02:51]} 6. Nxc6 {[%clk 0:02:45]}  dxc6 {[%clk 0:02:46]} 7. Qxd8+ {[%clk 0:02:43]}  Kxd8 {[%clk 0:02:45]} 8. Nc3 {[%clk 0:02:44]}  e5 {[%clk 0:02:44]} 9. Bg5+ {[%clk 0:02:43]}  Kc7 {[%clk 0:02:40]} 10. O-O-O {[%clk 0:02:43]}  Be6 {[%clk 0:02:33]} 11. Be3 {[%clk 0:02:35]}  Nf6 {[%clk 0:02:31]} 12. f3 {[%clk 0:02:35]}  Nd7 {[%clk 0:02:31]} 13. Be2 {[%clk 0:02:32]}  b5 {[%clk 0:02:30]} 14. cxb5 {[%clk 0:02:15]}  axb5 {[%clk 0:02:29]} 15. a3 {[%clk 0:02:15]}  b4 {[%clk 0:02:21]} 16. axb4 {[%clk 0:02:14]}  Bb3 {[%clk 0:02:18]} 17. Rde1 {[%clk 0:02:07]}  Bxb4 {[%clk 0:02:17]} 18. Bd1 {[%clk 0:02:02]}  Ra1+ {[%clk 0:02:08]} 19. Kd2 {[%clk 0:01:58]}  Be6 {[%clk 0:02:01]} 20. Bc2 {[%clk 0:01:53]}  Ra2 {[%clk 0:01:57]} 21. Rb1 {[%clk 0:01:38]}  Rd8 {[%clk 0:01:54]} 22. Rhc1 {[%clk 0:01:29]}  Nc5+ {[%clk 0:01:22]} 23. Ke2 {[%clk 0:01:26]}  Bc4+ {[%clk 0:01:20]} 24. Kf2 {[%clk 0:01:25]}  Bxc3 {[%clk 0:01:20]} 25. Bxc5 {[%clk 0:01:16]}  Rd2+ {[%clk 0:01:10]} 26. Kg3 {[%clk 0:00:29]}  Bxb2 {[%clk 0:01:10]} 0-1


[Site "https://www.chess.com"]

[Event "Titled Tuesday Blitz November 14 Late 2023"]
[White "Sjugirov, Sanan"]
[Black "Taboas Rodriguez, Daniel"]
[WhiteFideId "4189302"]
[BlackFideId "2208466"]
[WhiteElo "2913"]
[BlackElo "2569"]
[Result "0-1"]
[Round "2"]
[TimeControl "180+1"]
[Date "2023.11.14"]
[WhiteClock "0:00:00"]
[BlackClock "0:00:12"]
[Board "23"]

1. e4 {[%clk 0:03:00]}  e5 {[%clk 0:02:59]} 2. Nf3 {[%clk 0:03:00]}  Nc6 {[%clk 0:03:00]} 3. Bc4 {[%clk 0:03:00]}  Bc5 {[%clk 0:02:59]} 4. d3 {[%clk 0:03:00]}  Nf6 {[%clk 0:02:58]} 5. a4 {[%clk 0:03:00]}  d6 {[%clk 0:02:58]} 6. O-O {[%clk 0:02:59]}  a6 {[%clk 0:02:54]} 7. c3 {[%clk 0:02:58]}  Ba7 {[%clk 0:02:54]} 8. a5 {[%clk 0:02:50]}  Be6 {[%clk 0:02:49]} 9. Bxe6 {[%clk 0:02:48]}  fxe6 {[%clk 0:02:50]} 10. Be3 {[%clk 0:02:47]}  O-O {[%clk 0:02:48]} 11. Bxa7 {[%clk 0:02:45]}  Rxa7 {[%clk 0:02:48]} 12. Nbd2 {[%clk 0:02:44]}  Nh5 {[%clk 0:02:43]} 13. g3 {[%clk 0:02:38]}  Qf6 {[%clk 0:02:36]} 14. Qe2 {[%clk 0:01:58]}  Raa8 {[%clk 0:02:32]} 15. Qe3 {[%clk 0:01:57]}  h6 {[%clk 0:02:18]} 16. d4 {[%clk 0:01:56]}  exd4 {[%clk 0:02:08]} 17. cxd4 {[%clk 0:01:57]}  e5 {[%clk 0:02:08]} 18. Qb3+ {[%clk 0:01:30]}  Kh8 {[%clk 0:01:53]} 19. Qxb7 {[%clk 0:01:29]}  Nxd4 {[%clk 0:01:50]} 20. Nxd4 {[%clk 0:01:29]}  exd4 {[%clk 0:01:51]} 21. Qxc7 {[%clk 0:01:25]}  Qg5 {[%clk 0:01:40]} 22. Rad1 {[%clk 0:01:18]}  Nf4 {[%clk 0:01:24]} 23. Qxd6 {[%clk 0:01:06]}  Rad8 {[%clk 0:01:18]} 24. Qxa6 {[%clk 0:01:00]}  Nh3+ {[%clk 0:01:17]} 25. Kg2 {[%clk 0:00:58]}  Nxf2 {[%clk 0:01:00]} 26. Rxf2 {[%clk 0:00:57]}  Rxf2+ {[%clk 0:01:01]} 27. Kxf2 {[%clk 0:00:57]}  Qe3+ {[%clk 0:01:01]} 28. Kg2 {[%clk 0:00:56]}  d3 {[%clk 0:01:01]} 29. Rf1 {[%clk 0:00:13]}  Qxd2+ {[%clk 0:00:58]} 30. Kh3 {[%clk 0:00:13]}  Qe2 {[%clk 0:00:54]} 31. Rf4 {[%clk 0:00:05]}  Qh5+ {[%clk 0:00:31]} 32. Rh4 {[%clk 0:00:05]}  Qe8 {[%clk 0:00:31]} 33. Rxh6+ {[%clk 0:00:02]}  gxh6 {[%clk 0:00:31]} 34. Qxh6+ {[%clk 0:00:03]}  Kg8 {[%clk 0:00:32]} 35. Qg5+ {[%clk 0:00:03]}  Kf7 {[%clk 0:00:28]} 36. Qf5+ {[%clk 0:00:03]}  Kg7 {[%clk 0:00:22]} 37. Qg5+ {[%clk 0:00:04]}  Kh7 {[%clk 0:00:22]} 38. Qh4+ {[%clk 0:00:04]}  Kg6 {[%clk 0:00:21]} 39. Qg4+ {[%clk 0:00:04]}  Kh6 {[%clk 0:00:21]} 40. Qf4+ {[%clk 0:00:03]}  Kh7 {[%clk 0:00:18]} 41. Qh4+ {[%clk 0:00:03]}  Kg7 {[%clk 0:00:16]} 42. Qg5+ {[%clk 0:00:03]}  Kf7 {[%clk 0:00:16]} 43. Qf5+ {[%clk 0:00:03]}  Ke7 {[%clk 0:00:16]} 44. Qe5+ {[%clk 0:00:04]}  Kd7 {[%clk 0:00:16]} 45. Qd5+ {[%clk 0:00:04]}  Kc7 {[%clk 0:00:15]} 46. Qc5+ {[%clk 0:00:01]}  Qc6 {[%clk 0:00:14]} 47. Qe5+ {[%clk 0:00:00]}  Rd6 {[%clk 0:00:12]} 0-1


[Site "https://www.chess.com"]

[Event "Titled Tuesday Blitz November 14 Late 2023"]
[White "Kashefi, Amir Hosein"]
[Black "Zhigalko, Sergei"]
[WhiteFideId "12557935"]
[BlackFideId "13502956"]
[WhiteElo "2568"]
[BlackElo "2893"]
[Result "0-1"]
[Round "2"]
[TimeControl "180+1"]
[Date "2023.11.14"]
[WhiteClock "0:00:00"]
[BlackClock "0:00:04"]
[Board "25"]

1. Nf3 {[%clk 0:02:59]}  d5 {[%clk 0:02:59]} 2. g3 {[%clk 0:02:59]}  c6 {[%clk 0:02:59]} 3. Bg2 {[%clk 0:02:59]}  Bg4 {[%clk 0:03:00]} 4. O-O {[%clk 0:02:59]}  e6 {[%clk 0:02:59]} 5. b3 {[%clk 0:02:58]}  Nf6 {[%clk 0:02:57]} 6. Bb2 {[%clk 0:02:59]}  Be7 {[%clk 0:02:56]} 7. d3 {[%clk 0:02:59]}  O-O {[%clk 0:02:57]} 8. Nbd2 {[%clk 0:02:59]}  a5 {[%clk 0:02:57]} 9. c4 {[%clk 0:02:57]}  a4 {[%clk 0:02:56]} 10. Rb1 {[%clk 0:02:56]}  axb3 {[%clk 0:02:47]} 11. axb3 {[%clk 0:02:56]}  Nbd7 {[%clk 0:02:45]} 12. Ra1 {[%clk 0:02:56]}  Qb6 {[%clk 0:02:41]} 13. Qc2 {[%clk 0:02:53]}  h6 {[%clk 0:02:39]} 14. Bc3 {[%clk 0:02:49]}  Bb4 {[%clk 0:02:33]} 15. Qb2 {[%clk 0:02:45]}  Rfd8 {[%clk 0:02:23]} 16. Rxa8 {[%clk 0:02:44]}  Rxa8 {[%clk 0:02:21]} 17. Ra1 {[%clk 0:02:45]}  Rd8 {[%clk 0:02:03]} 18. Ra4 {[%clk 0:02:42]}  Bxc3 {[%clk 0:01:51]} 19. Qxc3 {[%clk 0:02:43]}  Bxf3 {[%clk 0:01:25]} 20. Bxf3 {[%clk 0:02:33]}  Nc5 {[%clk 0:01:23]} 21. Ra2 {[%clk 0:02:26]}  Na6 {[%clk 0:00:57]} 22. Qa5 {[%clk 0:02:23]}  Qxa5 {[%clk 0:00:54]} 23. Rxa5 {[%clk 0:02:24]}  Nd7 {[%clk 0:00:52]} 24. h4 {[%clk 0:02:08]}  Kf8 {[%clk 0:00:51]} 25. Kf1 {[%clk 0:02:01]}  Ke7 {[%clk 0:00:50]} 26. Ke1 {[%clk 0:01:58]}  Kd6 {[%clk 0:00:46]} 27. Kd1 {[%clk 0:01:55]}  g5 {[%clk 0:00:42]} 28. hxg5 {[%clk 0:01:53]}  hxg5 {[%clk 0:00:43]} 29. Ke1 {[%clk 0:01:34]}  f5 {[%clk 0:00:37]} 30. g4 {[%clk 0:01:34]}  f4 {[%clk 0:00:34]} 31. e3 {[%clk 0:01:29]}  Nb4 {[%clk 0:00:18]} 32. Ke2 {[%clk 0:01:26]}  Ne5 {[%clk 0:00:14]} 33. d4 {[%clk 0:01:09]}  Ned3 {[%clk 0:00:14]} 34. Ra7 {[%clk 0:01:06]}  Kc7 {[%clk 0:00:14]} 35. Ra1 {[%clk 0:01:01]}  Rh8 {[%clk 0:00:06]} 36. c5 {[%clk 0:00:32]}  fxe3 {[%clk 0:00:06]} 37. fxe3 {[%clk 0:00:19]}  Rh2+ {[%clk 0:00:04]} 38. Kd1 {[%clk 0:00:20]}  Nf2+ {[%clk 0:00:02]} 39. Kc1 {[%clk 0:00:12]}  Nfd3+ {[%clk 0:00:03]} 40. Kd1 {[%clk 0:00:12]}  e5 {[%clk 0:00:03]} 41. dxe5 {[%clk 0:00:08]}  Nf2+ {[%clk 0:00:04]} 42. Kc1 {[%clk 0:00:08]}  Nfd3+ {[%clk 0:00:04]} 43. Kd1 {[%clk 0:00:08]}  Nxe5 {[%clk 0:00:05]} 44. Ra8 {[%clk 0:00:08]}  Rxd2+ {[%clk 0:00:03]} 45. Kxd2 {[%clk 0:00:09]}  Nxf3+ {[%clk 0:00:04]} 46. Kc3 {[%clk 0:00:09]}  Na6 {[%clk 0:00:03]} 47. b4 {[%clk 0:00:10]}  Ne5 {[%clk 0:00:02]} 48. Rg8 {[%clk 0:00:10]}  Nxg4 {[%clk 0:00:02]} 49. Kd4 {[%clk 0:00:09]}  Nxb4 {[%clk 0:00:02]} 50. Rg7+ {[%clk 0:00:09]}  Kb8 {[%clk 0:00:02]} 51. Rxg5 {[%clk 0:00:09]}  Nf2 {[%clk 0:00:03]} 52. Rg7 {[%clk 0:00:02]}  Ne4 {[%clk 0:00:02]} 53. Rg8+ {[%clk 0:00:03]}  Ka7 {[%clk 0:00:03]} 54. Rg2 {[%clk 0:00:03]}  Na6 {[%clk 0:00:03]} 55. Rc2 {[%clk 0:00:02]}  Nexc5 {[%clk 0:00:03]} 56. Ra2 {[%clk 0:00:02]}  Kb6 {[%clk 0:00:03]} 57. Ke5 {[%clk 0:00:00]}  Kc7 {[%clk 0:00:04]} 0-1


[Site "https://www.chess.com"]

[Event "Titled Tuesday Blitz November 14 Late 2023"]
[White "Kowalski, Igor"]
[Black "Karamsetty, Jeevan"]
[WhiteFideId "1172468"]
[BlackFideId "2025337"]
[WhiteElo "2878"]
[BlackElo "2560"]
[Result "1-0"]
[Round "2"]
[TimeControl "180+1"]
[Date "2023.11.14"]
[WhiteClock "0:02:14"]
[BlackClock "0:01:06"]
[Board "27"]

1. d4 {[%clk 0:02:58]}  g6 {[%clk 0:03:00]} 2. e4 {[%clk 0:02:58]}  d6 {[%clk 0:03:00]} 3. Nc3 {[%clk 0:02:58]}  Bg7 {[%clk 0:03:00]} 4. Nf3 {[%clk 0:02:59]}  Nf6 {[%clk 0:02:59]} 5. Bc4 {[%clk 0:02:59]}  O-O {[%clk 0:02:59]} 6. Qe2 {[%clk 0:03:00]}  e6 {[%clk 0:02:42]} 7. Bg5 {[%clk 0:02:59]}  h6 {[%clk 0:02:41]} 8. Bh4 {[%clk 0:02:59]}  g5 {[%clk 0:02:38]} 9. Bg3 {[%clk 0:02:59]}  d5 {[%clk 0:02:39]} 10. Bb3 {[%clk 0:02:51]}  dxe4 {[%clk 0:02:31]} 11. Nxe4 {[%clk 0:02:52]}  Nxe4 {[%clk 0:02:29]} 12. Qxe4 {[%clk 0:02:53]}  f5 {[%clk 0:02:29]} 13. Qe2 {[%clk 0:02:49]}  f4 {[%clk 0:02:28]} 14. Bxe6+ {[%clk 0:02:44]}  Bxe6 {[%clk 0:02:24]} 15. Qxe6+ {[%clk 0:02:45]}  Kh8 {[%clk 0:02:23]} 16. O-O-O {[%clk 0:02:40]}  fxg3 {[%clk 0:01:59]} 17. hxg3 {[%clk 0:02:39]}  Qf6 {[%clk 0:01:55]} 18. Qg4 {[%clk 0:02:28]}  Nc6 {[%clk 0:01:53]} 19. Nxg5 {[%clk 0:02:15]}  Nxd4 {[%clk 0:01:13]} 20. Rxd4 {[%clk 0:02:14]}  Qxd4 {[%clk 0:01:12]} 21. Rxh6+ {[%clk 0:02:14]}  Kg8 {[%clk 0:01:06]} 22. Qe6+ {[%clk 0:02:14]} 1-0


[Site "https://www.chess.com"]

[Event "Titled Tuesday Blitz November 14 Late 2023"]
[White "Henriquez Villagra, Cristobal"]
[Black "Fieberg, Samuel"]
[WhiteFideId "3409350"]
[BlackFideId "12901717"]
[WhiteElo "2872"]
[BlackElo "2555"]
[Result "1-0"]
[Round "2"]
[TimeControl "180+1"]
[Date "2023.11.14"]
[WhiteClock "0:01:08"]
[BlackClock "0:00:08"]
[Board "30"]

1. e4 {[%clk 0:03:00]}  e6 {[%clk 0:03:00]} 2. d3 {[%clk 0:02:59]}  d5 {[%clk 0:03:01]} 3. e5 {[%clk 0:02:58]}  c5 {[%clk 0:03:00]} 4. f4 {[%clk 0:02:59]}  Nc6 {[%clk 0:03:00]} 5. Nf3 {[%clk 0:02:59]}  Nge7 {[%clk 0:02:58]} 6. g3 {[%clk 0:02:59]}  b6 {[%clk 0:02:52]} 7. Bg2 {[%clk 0:02:59]}  Bb7 {[%clk 0:02:53]} 8. O-O {[%clk 0:02:59]}  h5 {[%clk 0:02:47]} 9. Nh4 {[%clk 0:02:53]}  g6 {[%clk 0:02:46]} 10. c3 {[%clk 0:02:52]}  d4 {[%clk 0:02:44]} 11. c4 {[%clk 0:02:52]}  Nf5 {[%clk 0:02:33]} 12. Nxf5 {[%clk 0:02:35]}  gxf5 {[%clk 0:02:34]} 13. Nd2 {[%clk 0:02:26]}  h4 {[%clk 0:02:10]} 14. Nf3 {[%clk 0:02:11]}  hxg3 {[%clk 0:02:03]} 15. hxg3 {[%clk 0:02:12]}  Be7 {[%clk 0:01:55]} 16. Qe2 {[%clk 0:02:10]}  Qd7 {[%clk 0:01:46]} 17. Bd2 {[%clk 0:02:11]}  a5 {[%clk 0:01:35]} 18. Kf2 {[%clk 0:02:10]}  O-O-O {[%clk 0:01:27]} 19. Rh1 {[%clk 0:02:11]}  Rdg8 {[%clk 0:01:22]} 20. a3 {[%clk 0:02:09]}  a4 {[%clk 0:01:13]} 21. Rxh8 {[%clk 0:02:09]}  Rxh8 {[%clk 0:01:13]} 22. Rh1 {[%clk 0:02:10]}  Rxh1 {[%clk 0:01:10]} 23. Bxh1 {[%clk 0:02:11]}  Na5 {[%clk 0:01:00]} 24. Bxa5 {[%clk 0:01:52]}  bxa5 {[%clk 0:01:01]} 25. Bg2 {[%clk 0:01:53]}  Qd8 {[%clk 0:00:29]} 26. Ne1 {[%clk 0:01:29]}  Bxg2 {[%clk 0:00:28]} 27. Nxg2 {[%clk 0:01:29]}  Qb6 {[%clk 0:00:28]} 28. Qc2 {[%clk 0:01:29]}  Qb3 {[%clk 0:00:28]} 29. Qxb3 {[%clk 0:01:29]}  axb3 {[%clk 0:00:29]} 30. a4 {[%clk 0:01:29]}  Kd7 {[%clk 0:00:27]} 31. Ne1 {[%clk 0:01:29]}  Ke8 {[%clk 0:00:27]} 32. Nf3 {[%clk 0:01:30]}  Kf8 {[%clk 0:00:27]} 33. Nd2 {[%clk 0:01:30]}  Bd8 {[%clk 0:00:26]} 34. Nxb3 {[%clk 0:01:31]}  Bb6 {[%clk 0:00:27]} 35. g4 {[%clk 0:01:31]}  fxg4 {[%clk 0:00:26]} 36. Kg3 {[%clk 0:01:31]}  f5 {[%clk 0:00:27]} 37. exf6 {[%clk 0:01:31]}  Kf7 {[%clk 0:00:27]} 38. Kxg4 {[%clk 0:01:31]}  Kxf6 {[%clk 0:00:28]} 39. Nd2 {[%clk 0:01:32]}  Kg6 {[%clk 0:00:21]} 40. Ne4 {[%clk 0:01:33]}  Ba7 {[%clk 0:00:20]} 41. Ng3 {[%clk 0:01:31]}  Kf6 {[%clk 0:00:18]} 42. f5 {[%clk 0:01:14]}  exf5+ {[%clk 0:00:18]} 43. Nxf5 {[%clk 0:01:15]}  Ke5 {[%clk 0:00:18]} 44. Nh4 {[%clk 0:01:14]}  Ke6 {[%clk 0:00:17]} 45. Kf4 {[%clk 0:01:14]}  Kf6 {[%clk 0:00:17]} 46. Ke4 {[%clk 0:01:14]}  Ke6 {[%clk 0:00:18]} 47. Nf3 {[%clk 0:01:14]}  Bb6 {[%clk 0:00:18]} 48. Ng5+ {[%clk 0:01:04]}  Kd6 {[%clk 0:00:18]} 49. Nh3 {[%clk 0:01:05]}  Ke6 {[%clk 0:00:18]} 50. Nf4+ {[%clk 0:01:05]}  Kd6 {[%clk 0:00:19]} 51. Kf5 {[%clk 0:01:05]}  Ba7 {[%clk 0:00:19]} 52. Ne6 {[%clk 0:01:03]}  Bb6 {[%clk 0:00:18]} 53. Ng5 {[%clk 0:01:04]}  Ba7 {[%clk 0:00:18]} 54. Ne4+ {[%clk 0:01:04]}  Kc6 {[%clk 0:00:17]} 55. Ke5 {[%clk 0:01:05]}  Bb8+ {[%clk 0:00:17]} 56. Ke6 {[%clk 0:01:05]}  Bc7 {[%clk 0:00:17]} 57. Ng5 {[%clk 0:01:05]}  Bf4 {[%clk 0:00:17]} 58. Nf7 {[%clk 0:01:05]}  Bc1 {[%clk 0:00:16]} 59. Ne5+ {[%clk 0:01:05]}  Kb6 {[%clk 0:00:15]} 60. Kd5 {[%clk 0:01:06]}  Bxb2 {[%clk 0:00:14]} 61. Nd7+ {[%clk 0:01:07]}  Kc7 {[%clk 0:00:08]} 62. Nxc5 {[%clk 0:01:08]} 1-0


[Site "https://www.chess.com"]

[Event "Titled Tuesday Blitz November 14 Late 2023"]
[White "Ozates, Tuna"]
[Black "Beerdsen, Thomas"]
[WhiteFideId "6354521"]
[BlackFideId "1030108"]
[WhiteElo "2554"]
[BlackElo "2870"]
[Result "0-1"]
[Round "2"]
[TimeControl "180+1"]
[Date "2023.11.14"]
[WhiteClock "0:00:02"]
[BlackClock "0:01:22"]
[Board "31"]

1. e4 {[%clk 0:03:00]}  e5 {[%clk 0:02:58]} 2. Nc3 {[%clk 0:02:58]}  Nc6 {[%clk 0:02:58]} 3. g3 {[%clk 0:02:59]}  g6 {[%clk 0:02:57]} 4. Bg2 {[%clk 0:02:59]}  Bg7 {[%clk 0:02:58]} 5. d3 {[%clk 0:03:00]}  Nge7 {[%clk 0:02:58]} 6. Nge2 {[%clk 0:03:00]}  d6 {[%clk 0:02:57]} 7. O-O {[%clk 0:03:00]}  O-O {[%clk 0:02:57]} 8. Be3 {[%clk 0:03:00]}  f5 {[%clk 0:02:58]} 9. f4 {[%clk 0:02:58]}  Kh8 {[%clk 0:02:51]} 10. d4 {[%clk 0:02:56]}  exd4 {[%clk 0:02:46]} 11. Nxd4 {[%clk 0:02:56]}  fxe4 {[%clk 0:02:46]} 12. Nxe4 {[%clk 0:02:49]}  Nf5 {[%clk 0:02:41]} 13. Nxf5 {[%clk 0:02:46]}  Bxf5 {[%clk 0:02:42]} 14. Re1 {[%clk 0:02:32]}  Qd7 {[%clk 0:02:38]} 15. Bd2 {[%clk 0:02:31]}  d5 {[%clk 0:02:35]} 16. Nc5 {[%clk 0:02:24]}  Qf7 {[%clk 0:02:32]} 17. c3 {[%clk 0:02:15]}  b6 {[%clk 0:02:28]} 18. Nb3 {[%clk 0:02:15]}  Rad8 {[%clk 0:02:25]} 19. Be3 {[%clk 0:02:15]}  Be4 {[%clk 0:02:23]} 20. Nd4 {[%clk 0:02:11]}  Ne7 {[%clk 0:02:23]} 21. Nb5 {[%clk 0:01:44]}  c6 {[%clk 0:02:14]} 22. Nxa7 {[%clk 0:01:41]}  Bxg2 {[%clk 0:01:59]} 23. Kxg2 {[%clk 0:01:39]}  d4 {[%clk 0:01:51]} 24. Bxd4 {[%clk 0:01:32]}  Bxd4 {[%clk 0:01:45]} 25. cxd4 {[%clk 0:01:33]}  Rd7 {[%clk 0:01:41]} 26. d5 {[%clk 0:01:07]}  Rxa7 {[%clk 0:01:34]} 27. d6 {[%clk 0:01:01]}  Nf5 {[%clk 0:01:31]} 28. g4 {[%clk 0:00:43]}  Nh4+ {[%clk 0:01:28]} 29. Kh3 {[%clk 0:00:43]}  Qxf4 {[%clk 0:01:28]} 30. Re7 {[%clk 0:00:22]}  Nf3 {[%clk 0:01:22]} 31. Qe2 {[%clk 0:00:13]}  Qh6+ {[%clk 0:01:20]} 32. Kg2 {[%clk 0:00:02]}  Qxh2+ {[%clk 0:01:21]} 33. Kf1 {[%clk 0:00:02]}  Qg1# {[%clk 0:01:22]} 0-1


[Site "https://www.chess.com"]